bitfinex/quotes_ETHUSD_20250507
["timestamp","ask_amount","ask_price","bid_price","bid_amount"]
[1746599269375,5.45594558,1832.9,1832.5,5.45687121]
[1746599270206,0.8072,1832.8,1832.2,6.2444482]
[1746599270376,5.45672168,1832.7,1832.3,5.45757454]
[1746599270576,5.45656736,1832.7,1832.3,5.66249054]
[1746599271700,5.45683081,1832.6,1832.3,0.204916]
[1746599271907,10.91325361,1832.7,1832.3,5.66244116]
[1746599272206,10.91328087,1832.7,1832.3,5.66244116]
[1746599272409,5.45675179,1832.6,1832.3,5.66244116]
[1746599273113,5.45659166,1832.7,1832.3,5.66244116]
[1746599273278,10.91328252,1832.7,1832.3,5.66244116]
[1746599273480,5.45673395,1832.6,1832.3,0.204916]
[1746599274372,5.45706203,1832.5,1832.3,0.204916]
[1746599274576,5.45673395,1832.6,1832.3,0.204916]
[1746599274577,5.45693335,1832.6,1832.3,0.204916]
[1746599274908,5.45672814,1832.6,1832.3,0.204916]
[1746599275491,5.45714267,1832.5,1832.3,0.204916]
[1746599276103,6.20752395,1832.6,1832.3,0.204916]
[1746599276802,11.66448658,1832.6,1832.3,0.204916]
[1746599276974,12.94810367,1832.6,1832.3,0.204916]
[1746599277174,5.45705203,1832.5,1832.3,0.204916]
[1746599279099,5.45732372,1832.4,1832.3,0.204916]
[1746599279300,5.45705203,1832.5,1832.3,0.204916]
[1746599279488,5.45705203,1832.5,1832.1,10.91618659]
[1746599279689,5.45705203,1832.5,1832.2,0.1629363]
[1746599279903,5.45705203,1832.5,1832.1,10.91618659]
[1746599280097,5.45705203,1832.5,1832.2,0.1629363]
[1746599280308,5.45705203,1832.5,1832.2,5.45789391]
[1746599280478,7.49114375,1832.6,1832.3,0.16225278]
[1746599280682,12.94813897,1832.6,1832.3,0.16225278]
[1746599280988,5.45708137,1832.5,1832.3,0.16225278]
[1746599281812,5.45708137,1832.5,1832.3,0.0836584]
[1746599281992,6.75190388,1832.5,1832.2,5.45789391]
[1746599282311,6.75190388,1832.5,1832.2,5.76411792]
[1746599283010,6.75190388,1832.5,1832.2,0.30622401]
[1746599283218,5.45743841,1832.4,1832.2,0.30622401]
[1746599283691,5.45743841,1832.4,1832.0,11.68135484]
[1746599283876,5.45743841,1832.4,1832.1,0.3075912]
[1746599284310,5.45743841,1832.4,1832.1,5.76580652]
[1746599286619,6.28448137,1832.5,1832.1,5.76580652]
[1746599287831,6.28448137,1832.5,1832.1,11.22384285]
[1746599288038,6.28452662,1832.5,1832.1,5.76563517]
[1746599288337,6.28452662,1832.5,1832.1,5.82017658]
[1746599289030,6.28452662,1832.5,1832.2,5.45790855]
[1746599289230,7.45867319,1832.5,1832.2,5.45790855]
[1746599289431,7.45867319,1832.5,1832.3,0.30671996]
[1746599290621,5.45732372,1832.4,1832.3,0.30671996]
[1746599291307,5.45732372,1832.4,1832.1,5.45821248]
[1746599291508,5.45732372,1832.4,1832.2,0.30808701]
[1746599291731,5.45732372,1832.4,1832.1,5.45821248]
[1746599291898,5.45732372,1832.4,1832.2,0.1540435]
[1746599292099,5.45732372,1832.4,1832.1,5.45821248]
[1746599292402,5.45732372,1832.4,1832.2,0.15559611]
[1746599292598,0.7583,1832.3,1832.2,0.15559611]
[1746599292833,6.21592156,1832.3,1831.9,5.4586258]
[1746599293029,6.21592156,1832.3,1832.2,0.15540978]
[1746599293238,6.21592156,1832.3,1831.9,5.5131469]
[1746599293447,6.21592156,1832.3,1832.2,0.15540978]
[1746599293448,9.21592156,1832.3,1832.2,0.15540978]
[1746599293644,5.45830784,1832.1,1831.9,0.774]
[1746599293798,0.7583,1832.1,1831.7,0.774]
[1746599293998,5.45860685,1832.0,1831.7,0.774]
[1746599294440,5.45860685,1832.0,1831.7,6.23340812]
[1746599294738,5.45860685,1832.0,1831.7,0.774]
[1746599295345,6.62613054,1832.0,1831.7,0.774]
[1746599295547,5.45881971,1831.9,1831.7,0.774]
[1746599295730,6.62622773,1832.0,1831.7,0.774]
[1746599295934,5.45881849,1831.9,1831.5,6.27253674]
[1746599296108,5.45881849,1831.9,1831.5,6.32713091]
[1746599296309,5.45881849,1831.9,1831.6,0.15951247]
[1746599296519,6.66732311,1831.9,1831.6,0.15951247]
[1746599297247,12.12642874,1831.9,1831.6,0.15951247]
[1746599297444,5.45927177,1831.8,1831.6,0.15951247]
[1746599297651,6.25107177,1831.8,1831.6,0.15951247]
[1746599297946,6.25107177,1831.8,1831.4,12.32042646]
[1746599297947,6.25107177,1831.8,1831.7,0.1588285]
[1746599298156,7.54291126,1831.8,1831.4,12.32042646]
[1746599298438,7.54291126,1831.8,1831.5,0.16019652]
[1746599299012,6.21019156,1831.9,1831.5,5.62017696]
[1746599299229,5.45928253,1831.8,1831.5,0.16019652]
[1746599299843,10.91864013,1831.8,1831.5,0.16019652]
[1746599300138,5.45928253,1831.8,1831.5,0.16019652]
[1746599302138,6.21014107,1831.9,1831.5,0.16019652]
[1746599302139,5.45894107,1831.9,1831.6,5.45967524]
[1746599302316,5.45867657,1832.0,1831.7,0.93092606]
[1746599302649,6.00468622,1831.9,1831.7,0.93092606]
[1746599303859,6.28411125,1831.8,1831.7,0.13322606]
[1746599304211,5.45942955,1831.7,1831.3,5.46039999]
[1746599305057,5.45942955,1831.7,1831.4,5.46029463]
[1746599305248,5.45942955,1831.7,1831.3,5.51499954]
[1746599305553,6.28411125,1831.8,1831.4,6.21667598]
[1746599305914,0.8255,1831.7,1830.9,0.7709]
[1746599306119,5.46021165,1831.5,1831.1,6.23207186]
[1746599306321,5.46021165,1831.5,1831.1,6.23188649]
[1746599306545,5.46021165,1831.5,1831.1,6.2318755]
[1746599306946,5.4603138,1831.4,1831.1,6.2318755]
[1746599307149,6.27403996,1831.3,1830.9,6.04]
[1746599307347,8.4599981,1831.6,1830.9,6.04]
[1746599307348,5.4604432,1831.4,1831.0,6.23318025]
[1746599307955,10.92101819,1831.4,1831.0,6.23318025]
[1746599308130,5.4604432,1831.4,1831.0,6.23318025]
[1746599308330,6.63382381,1831.4,1831.0,6.23318025]
[1746599308857,7.047064,1831.4,1831.0,6.23318025]
[1746599310157,7.047064,1831.4,1831.1,23.46117515]
[1746599310663,7.047064,1831.4,1831.1,18.0]
[1746599311463,7.047064,1831.4,1831.2,0.13795192]
[1746599311658,1.5866208,1831.4,1831.2,0.13795192]
[1746599311827,6.27349195,1831.5,1831.1,23.46119085]
[1746599312160,6.27349195,1831.5,1831.2,0.13795192]
[1746599312359,6.27349195,1831.5,1831.1,23.46119085]
[1746599312534,6.27349195,1831.5,1831.2,0.13795192]
[1746599312734,6.27349195,1831.5,1831.1,23.46096692]
[1746599312940,6.27349195,1831.5,1831.2,0.13795192]
[1746599313265,7.74681204,1831.5,1831.2,5.46086952]
[1746599313467,7.74681204,1831.5,1831.3,0.13740451]
[1746599313766,8.16394802,1831.5,1831.1,5.46096692]
[1746599313968,8.16394802,1831.5,1831.2,0.13795192]
[1746599314164,8.16394802,1831.5,1831.1,5.46096692]
[1746599314458,8.16394802,1831.5,1831.2,0.13795192]
[1746599314864,8.16394802,1831.5,1831.1,5.46096692]
[1746599315067,9.28970899,1831.6,1831.3,0.13740451]
[1746599315232,9.28970899,1831.6,1831.2,5.59866407]
[1746599315433,9.28970899,1831.6,1831.4,0.13685715]
[1746599315628,9.28970899,1831.6,1831.3,0.13740451]
[1746599315865,5.45945323,1831.7,1831.5,0.13630986]
[1746599316164,5.45970735,1831.6,1831.3,5.46056793]
[1746599317163,5.45972727,1831.6,1831.3,5.46056793]
[1746599317465,6.29090616,1831.5,1831.1,11.5010053]
[1746599318158,6.29090616,1831.5,1831.2,5.46088309]
[1746599321128,6.28033071,1831.6,1831.2,5.46088309]
[1746599321394,13.53586874,1831.6,1831.2,5.46088309]
[1746599321586,8.07589317,1831.6,1831.2,5.46088309]
[1746599321753,13.53583656,1831.6,1831.2,5.46088309]
[1746599321955,8.07589317,1831.6,1831.2,5.46088309]
[1746599322156,8.07589317,1831.6,1831.2,5.46074263]
[1746599322363,8.07589317,1831.6,1831.2,5.46070224]
[1746599322884,6.28252363,1831.3,1830.9,6.27136277]
[1746599323470,6.28252363,1831.3,1830.9,11.73297088]
[1746599323671,6.28252363,1831.3,1830.9,6.27130811]
[1746599323877,6.28252363,1831.3,1831.0,5.46148036]
[1746599324180,6.28252363,1831.3,1830.9,6.27128653]
[1746599324181,6.28252363,1831.3,1830.9,6.27133357]
[1746599324347,12.91769132,1831.3,1830.9,6.27133357]
[1746599324746,1.99599819,1831.3,1830.7,7.7561237]
[1746599324950,6.28239963,1831.3,1830.8,5.46198604]
[1746599325162,5.46101344,1831.2,1830.8,6.27798604]
[1746599325560,5.46122621,1831.1,1830.8,0.816]
[1746599326362,5.46122621,1831.1,1830.9,0.14063852]
[1746599326589,5.46122621,1831.1,1830.9,18.0]
[1746599326774,6.55345018,1831.1,1831.0,0.14009093]
[1746599327889,7.35235018,1831.1,1831.0,0.14009093]
[1746599328254,10.35235018,1831.1,1831.0,0.14009093]
[1746599328655,10.35235018,1831.1,1831.0,0.12173045]
[1746599329292,5.46151648,1831.0,1830.7,0.8098]
[1746599329871,7.75447534,1831.3,1830.9,6.23619777]
[1746599329872,6.27112638,1831.3,1830.9,6.23619777]
[1746599330795,5.46072638,1831.3,1831.0,5.46144953]
[1746599330960,5.46072638,1831.3,1830.9,0.7747]
[1746599331160,5.46072638,1831.3,1830.9,6.2362672]
[1746599331667,10.92160369,1831.3,1830.9,6.2362672]
[1746599331868,7.63768675,1831.3,1830.9,6.2362672]
[1746599332084,5.46090899,1831.2,1830.9,6.2362672]
[1746599332755,7.63770762,1831.3,1830.9,6.2362672]
[1746599333468,13.09855341,1831.3,1830.9,6.2362672]
[1746599333652,7.63770762,1831.3,1830.9,6.2362672]
[1746599334589,13.09854895,1831.3,1830.9,6.2362672]
[1746599334785,7.63770762,1831.3,1830.9,6.2362672]
[1746599335757,7.63770762,1831.3,1830.9,11.69787616]
[1746599335956,7.63770762,1831.3,1830.9,11.69787937]
[1746599336254,7.63770762,1831.3,1830.9,6.2362672]
[1746599336455,7.63770762,1831.3,1831.0,0.1416377]
[1746599338288,13.09854408,1831.3,1831.0,0.1416377]
[1746599338499,1.30985441,1831.2,1831.0,0.1416377]
[1746599338875,2.12375441,1831.2,1831.0,0.1416377]
[1746599339081,7.63774151,1831.3,1831.0,0.1416377]
[1746599339281,8.40514151,1831.3,1831.0,0.1416377]
[1746599340499,2.94436037,1831.3,1831.0,0.1416377]
[1746599340696,9.28294137,1831.5,1831.1,6.26305063]
[1746599341072,9.28294137,1831.5,1831.2,0.14054269]
[1746599341604,9.28294137,1831.5,1831.3,0.13999527]
[1746599341897,11.84381297,1831.5,1831.1,6.26300545]
[1746599342088,11.84381297,1831.5,1831.4,0.1162066]
[1746599342292,11.84381297,1831.5,1831.1,6.26300545]
[1746599342494,11.84381297,1831.5,1831.4,0.13944792]
[1746599342664,5.46045283,1831.4,1831.1,0.802]
[1746599343310,5.46045283,1831.4,1831.1,6.26317953]
[1746599343484,11.84393642,1831.5,1831.1,6.26317953]
[1746599345607,5.46032125,1831.4,1831.1,6.26317953]
[1746599346800,11.84393642,1831.5,1831.1,6.26317953]
[1746599347107,8.46026482,1831.5,1831.2,5.46086313]
[1746599347472,8.46026482,1831.5,1831.1,6.26298806]
[1746599347873,5.46033481,1831.4,1831.1,0.802]
[1746599348474,5.46033481,1831.4,1831.1,6.26319104]
[1746599350104,9.22565433,1831.5,1831.1,6.26319104]
[1746599350611,8.46015433,1831.5,1831.2,5.46086247]
[1746599350786,8.46015433,1831.5,1831.1,6.26299246]
[1746599350983,8.46015433,1831.5,1831.1,11.72398463]
[1746599351527,8.46015433,1831.5,1831.1,11.72396392]
[1746599351819,3.0,1831.5,1831.3,0.7619]
[1746599351982,13.9192508,1831.7,1831.3,6.22246961]
[1746599352315,5.45977113,1831.6,1831.3,0.7619]
[1746599352522,3.0,1831.5,1831.3,0.7619]
[1746599353824,11.30672976,1831.8,1831.3,6.8446366]
[1746599353988,16.73472976,1831.8,1831.4,5.46012761]
[1746599354189,11.30672976,1831.8,1831.4,5.46012761]
[1746599354806,16.76609617,1831.8,1831.4,5.46012761]
[1746599355313,11.30672976,1831.8,1831.4,5.46012761]
[1746599356000,11.30672976,1831.8,1831.4,10.92023459]
[1746599356330,11.30672976,1831.8,1831.5,0.7749]
[1746599356628,11.30672976,1831.8,1831.5,0.91056716]
[1746599359413,11.30672976,1831.8,1831.5,6.37057053]
[1746599359616,11.30672976,1831.8,1831.5,0.91056716]
[1746599360139,5.84744567,1831.8,1831.5,6.37055002]
[1746599360837,31.39071971,1832.1,1831.5,1.54762216]
[1746599361029,31.39071971,1832.1,1831.7,6.27620655]
[1746599361227,33.6845831,1832.1,1831.8,0.10974013]
[1746599361440,5.45869879,1832.0,1831.8,0.10974013]
[1746599361933,5.45869879,1832.0,1831.5,6.29230521]
[1746599361934,5.45881325,1831.9,1831.5,6.29230521]
[1746599362135,5.45912383,1831.8,1831.5,0.8325]
[1746599362315,6.25148639,1831.9,1831.5,0.8325]
[1746599362504,7.17663503,1831.9,1831.5,0.8325]
[1746599362806,12.63574413,1831.9,1831.5,0.8325]
[1746599363240,7.17663503,1831.9,1831.5,6.29248213]
[1746599364048,7.17663503,1831.9,1831.5,6.29230793]
[1746599364212,6.25148639,1831.9,1831.5,11.7521081]
[1746599364541,6.25148639,1831.9,1831.5,6.29230017]
[1746599365645,5.45898639,1831.9,1831.5,11.75210916]
[1746599366621,5.45898639,1831.9,1831.5,0.8325]
[1746599366868,5.45896313,1831.9,1831.5,6.29249988]
[1746599367070,5.45881772,1831.9,1831.6,5.45967124]
[1746599367365,6.89100681,1831.9,1831.5,6.34691463]
[1746599367955,8.86294935,1832.0,1831.6,0.7613]
[1746599368162,14.32170538,1832.0,1831.6,6.22089271]
[1746599370085,5.45884135,1831.9,1831.6,6.22089271]
[1746599370358,5.45884135,1831.9,1831.6,0.7613]
[1746599370741,8.862953,1832.0,1831.6,6.22099473]
[1746599370940,11.14359949,1832.0,1831.6,6.22099473]
[1746599371466,11.14359949,1832.0,1831.7,0.13129053]
[1746599371964,16.60236788,1832.0,1831.6,6.22099473]
[1746599372152,11.14359949,1832.0,1831.8,0.13074342]
[1746599372332,11.14359949,1832.0,1831.7,0.13129053]
[1746599372533,11.14359949,1832.0,1831.9,0.13019636]
[1746599372734,11.14359949,1832.0,1831.8,0.13074342]
[1746599372937,11.14359949,1832.0,1831.6,6.22099473]
[1746599372938,11.14359949,1832.0,1831.9,0.12974886]
[1746599373333,16.60237232,1832.0,1831.6,6.22099473]
[1746599373532,11.14359949,1832.0,1831.9,0.12974886]
[1746599373732,11.14359949,1832.0,1831.6,6.22099473]
[1746599373956,11.14359949,1832.0,1831.9,0.12974886]
[1746599374156,11.14359949,1832.0,1831.6,6.22099473]
[1746599374361,11.14359949,1832.0,1831.9,0.12974886]
[1746599374563,5.45883906,1831.9,1831.6,6.22099473]
[1746599375833,5.45883906,1831.9,1831.6,0.7613]
[1746599376037,7.11908291,1831.9,1831.6,0.7613]
[1746599377170,1.66024385,1831.9,1831.6,6.22079378]
[1746599377341,3.0,1832.0,1831.7,5.4594057]
[1746599377540,3.0,1832.0,1831.8,0.7785]
[1746599378161,8.45851575,1832.0,1831.8,0.7785]
[1746599378363,8.45851575,1832.0,1831.6,6.23804809]
[1746599378564,5.45881579,1831.9,1831.6,6.23820124]
[1746599378770,5.45881579,1831.9,1831.6,0.7785]
[1746599378973,9.93023625,1832.0,1831.6,0.7785]
[1746599379140,9.93023625,1832.0,1831.6,6.23807253]
[1746599379975,10.33597072,1832.0,1831.6,6.23807253]
[1746599380273,3.0,1832.0,1831.7,5.45940743]
[1746599380576,3.0,1832.0,1831.8,0.7834]
[1746599382288,5.45838366,1832.1,1831.8,0.7834]
[1746599384788,5.86108445,1832.1,1831.8,0.7834]
[1746599385282,11.3195579,1832.1,1831.8,0.7834]
[1746599385488,7.29304024,1832.1,1831.8,0.7834]
[1746599385889,6.89033945,1832.1,1831.8,0.7834]
[1746599387047,5.45861874,1832.0,1831.7,0.7619]
[1746599391397,5.45861874,1832.0,1831.6,5.45950137]
[1746599391898,6.2355527,1831.9,1831.5,6.24707332]
[1746599392394,6.2355527,1831.9,1831.5,6.36948535]
[1746599393186,7.63434926,1831.9,1831.5,6.36948535]
[1746599394894,7.63434926,1831.9,1831.5,11.82927366]
[1746599395196,6.2355527,1831.9,1831.5,11.82927366]
[1746599396191,0.7765,1831.9,1831.6,5.45970127]
[1746599397531,0.7765,1831.9,1831.1,4.84477792]
[1746599397532,5.46000546,1831.5,1831.1,3.67237946]
[1746599397811,0.805,1831.3,1831.1,3.67237946]
[1746599397986,9.26560981,1831.3,1831.1,3.67237946]
[1746599398301,9.26564298,1831.3,1831.1,3.67237946]
[1746599398973,9.26578217,1831.3,1831.1,3.67237946]
[1746599399622,9.26578465,1831.3,1831.1,3.67237946]
[1746599399900,0.51130049,1831.2,1831.1,3.67237946]
[1746599401518,0.51130049,1831.2,1831.0,6.2420864]
[1746599401908,0.51130049,1831.2,1831.0,0.7806]
[1746599402081,0.51130049,1831.1,1831.0,0.7806]
[1746599402568,0.51130049,1831.1,1830.9,5.46160388]
[1746599402921,0.51130049,1831.1,1830.8,6.29190644]
[1746599402922,1.27330049,1831.1,1830.8,6.29190644]
[1746599403292,1.27330049,1831.1,1830.8,5.46190644]
[1746599403293,0.51130049,1831.0,1830.8,5.46190644]
[1746599403838,0.51130049,1831.0,1830.9,18.0]
[1746599405712,0.762,1831.1,1830.9,18.0]
[1746599407029,6.22322487,1831.1,1830.9,18.0]
[1746599407319,0.50971652,1831.0,1830.9,18.0]
[1746599407746,5.97121297,1831.0,1830.9,18.0]
[1746599408045,0.50971652,1831.0,1830.9,18.0]
[1746599408556,7.39165394,1831.1,1830.8,5.46207005]
[1746599409360,7.39165394,1831.1,1830.7,6.23530684]
[1746599410164,7.39165394,1831.1,1830.7,11.69751215]
[1746599410366,7.39165394,1831.1,1830.7,6.23530531]
[1746599410552,7.39165394,1831.1,1830.7,11.69746582]
[1746599411075,7.39165394,1831.1,1830.7,6.23526051]
[1746599411663,7.39165394,1831.1,1830.7,11.69747557]
[1746599411866,7.8008634,1831.1,1830.7,11.69747557]
[1746599412163,7.8008634,1831.1,1830.7,6.23526051]
[1746599413862,7.8008634,1831.1,1830.7,5.46216051]
[1746599414027,0.50913654,1831.0,1830.7,5.46216051]
[1746599414223,5.9706537,1831.0,1830.7,5.46216051]
[1746599414741,7.8008634,1831.1,1830.7,5.46216051]
[1746599414950,13.26231374,1831.1,1830.7,5.46216051]
[1746599415483,6.78780389,1831.0,1830.6,10.92502101]
[1746599415683,6.78780389,1831.0,1830.7,5.46238789]
[1746599415856,1.32623137,1831.0,1830.7,5.46238789]
[1746599416498,6.78777303,1831.0,1830.6,5.46250171]
[1746599417805,6.78777303,1831.0,1830.7,0.12309633]
[1746599418097,6.78777303,1831.0,1830.6,5.46250171]
[1746599418395,6.78777303,1831.0,1830.8,0.15318577]
[1746599418702,0.6787773,1830.9,1830.8,0.15318577]
[1746599418880,0.6787773,1830.9,1830.6,5.46250171]
[1746599419209,6.78777303,1831.0,1830.8,0.15318577]
[1746599419564,6.78777303,1831.0,1830.6,5.46248374]
[1746599419765,6.78777303,1831.0,1830.8,0.15318577]
[1746599419959,12.24953741,1831.0,1830.7,0.12339413]
[1746599420175,9.78772782,1831.0,1830.9,0.12229876]
[1746599420403,10.29727582,1831.0,1830.8,0.12284642]
[1746599420585,10.29727582,1831.0,1830.9,0.12229876]
[1746599420897,15.75903182,1831.0,1830.6,5.46248374]
[1746599421064,10.29727582,1831.0,1830.9,0.12229876]
[1746599421268,5.4623262,1830.8,1830.4,5.4632632]
[1746599421460,5.4623262,1830.8,1830.5,5.5874036]
[1746599421694,5.4623262,1830.8,1830.5,0.12448974]
[1746599421879,0.7735,1830.7,1830.5,0.12448974]
[1746599422077,7.2651547,1830.9,1830.5,5.58727977]
[1746599422297,5.46179487,1830.9,1830.6,6.25718965]
[1746599422474,0.50990492,1830.8,1830.6,6.25718965]
[1746599422697,5.46179487,1830.9,1830.7,0.12413886]
[1746599422893,6.98676727,1830.9,1830.7,0.12413886]
[1746599423078,4.5249724,1830.9,1830.6,6.25718965]
[1746599423388,4.5249724,1830.9,1830.8,0.12359115]
[1746599423700,4.5249724,1830.9,1830.6,6.25718965]
[1746599423902,5.0351651,1830.9,1830.8,0.12359115]
[1746599424095,5.0351651,1830.9,1830.7,0.12413886]
[1746599424271,5.0351651,1830.9,1830.8,0.12359115]
[1746599424600,10.4971629,1830.9,1830.5,6.28249003]
[1746599424804,7.79123712,1830.8,1830.3,6.24807865]
[1746599425104,5.46272476,1830.6,1830.2,5.4637091]
[1746599425305,5.4630872,1830.5,1830.1,6.24861167]
[1746599425603,5.4630872,1830.5,1830.1,6.24855957]
[1746599425762,0.51067638,1830.4,1830.2,5.46387577]
[1746599426505,6.23199533,1830.6,1830.2,5.46387577]
[1746599426699,7.40145125,1830.6,1830.3,18.0]
[1746599427083,6.29460467,1830.5,1830.3,18.0]
[1746599427399,0.51094181,1830.5,1830.3,18.0]
[1746599427903,0.51094181,1830.4,1830.3,18.0]
[1746599429282,12.03519191,1830.4,1830.3,18.0]
[1746599429482,13.78501332,1830.4,1830.3,18.0]
[1746599429681,11.49114993,1830.4,1830.3,18.0]
[1746599430090,5.46393759,1830.2,1830.0,0.4113682]
[1746599430594,5.97512409,1830.1,1830.0,0.4113682]
[1746599430804,6.74022409,1830.1,1830.0,0.4113682]
[1746599431008,8.1900266,1830.1,1830.0,0.4113682]
[1746599435985,11.1900266,1830.1,1830.0,0.4113682]
[1746599436185,11.1900266,1830.1,1830.0,0.54579962]
[1746599436790,11.1900266,1830.1,1829.4,14.02806339]
[1746599437104,11.1900266,1830.1,1829.7,5.46535145]
[1746599437402,1.62994447,1830.0,1829.6,10.9309456]
[1746599437567,1.62994447,1830.0,1829.8,0.2039715]
[1746599437773,1.11900266,1830.0,1829.7,5.67022547]
[1746599438010,1.11900266,1830.0,1829.8,0.2039715]
[1746599440484,9.22945861,1830.1,1829.8,0.2039715]
[1746599440998,0.50927977,1830.0,1829.8,0.2039715]
[1746599441575,9.22945861,1830.1,1829.8,0.2039715]
[1746599441776,9.63602305,1830.1,1829.8,0.2039715]
[1746599442209,4.17166444,1830.1,1829.8,0.2039715]
[1746599442415,4.17166444,1830.1,1829.8,5.66903724]
[1746599444204,3.40656444,1830.1,1829.8,5.66903724]
[1746599444983,0.50943212,1830.0,1829.8,5.66903724]
[1746599445291,3.40656444,1830.1,1829.8,5.66903724]
[1746599446213,3.40656444,1830.1,1829.8,6.47853724]
[1746599446508,3.40656444,1830.1,1829.8,6.4783655]
[1746599446716,0.50958925,1830.0,1829.8,6.4783655]
[1746599447117,3.40656444,1830.1,1829.8,6.4783655]
[1746599447414,3.0,1830.1,1829.8,6.47833461]
[1746599447581,3.0,1830.1,1829.9,5.46465854]
[1746599447913,3.0,1830.1,1830.0,0.15384383]
[1746599448330,3.50967383,1830.1,1830.0,0.15384383]
[1746599448891,3.50967383,1830.1,1829.8,11.73924097]
[1746599449099,3.50967383,1830.1,1829.9,5.6192777]
[1746599449616,6.26296494,1830.5,1830.0,5.46448087]
[1746599449785,6.26296494,1830.5,1830.1,6.28417338]
[1746599449987,11.72622136,1830.5,1830.1,6.48838493]
[1746599450198,11.72622136,1830.5,1830.1,6.28417338]
[1746599450397,3.0,1830.4,1830.1,6.28417338]
[1746599450581,0.51018773,1830.3,1830.1,0.8201]
[1746599451422,0.51018773,1830.2,1830.1,0.8201]
[1746599451623,0.51018773,1830.3,1830.1,0.8201]
[1746599452122,0.51018773,1830.2,1830.1,0.8201]
[1746599452321,0.51018773,1830.3,1830.1,6.28428228]
[1746599452921,0.51018773,1830.2,1830.1,6.28428228]
[1746599453497,0.51018773,1830.2,1829.9,6.65394486]
[1746599453702,0.51018773,1830.2,1830.0,5.66899117]
[1746599453902,0.51018773,1830.2,1830.0,5.46444584]
[1746599454404,0.51018773,1830.1,1830.0,5.46444584]
[1746599455924,0.51018773,1830.1,1829.8,0.7528]
[1746599455925,0.51018773,1830.1,1829.8,5.46498009]
[1746599456117,0.51018773,1830.1,1829.8,10.92994818]
[1746599456317,0.51018773,1830.1,1829.9,0.20371999]
[1746599456496,0.51018773,1830.0,1829.9,0.20371999]
[1746599456927,0.51018773,1830.0,1829.9,0.15278999]
[1746599458026,0.51018773,1830.0,1829.7,5.46520996]
[1746599458217,6.22699673,1830.1,1829.9,0.15278999]
[1746599458397,6.8496964,1830.1,1829.8,0.15347531]
[1746599458597,6.8496964,1830.1,1829.9,0.15278999]
[1746599458598,0.51191885,1830.0,1829.9,0.15278999]
[1746599458999,0.51191885,1830.0,1829.8,5.46497581]
[1746599459331,0.51191885,1830.0,1829.9,0.15278999]
[1746599460336,0.51191885,1830.0,1829.8,5.46497581]
[1746599460733,0.51191885,1829.9,1829.8,5.618389]
[1746599461228,0.51191885,1829.9,1829.8,0.15341319]
[1746599462813,0.51191885,1829.9,1829.6,11.68377421]
[1746599463019,0.51191885,1829.9,1829.8,0.15434499]
[1746599463219,0.51191885,1829.8,1829.7,0.15503038]
[1746599463400,0.51191885,1829.8,1829.6,13.08153797]
[1746599463601,0.51191885,1829.8,1829.7,5.46537683]
[1746599465836,6.75459509,1829.8,1829.4,5.46602552]
[1746599466008,1.28941885,1829.8,1829.5,5.46597342]
[1746599466208,0.51191885,1829.7,1829.5,5.59273433]
[1746599466600,0.51191885,1829.6,1829.5,6.69861032]
[1746599466833,0.51191885,1829.6,1829.5,7.47311032]
[1746599468244,0.51191885,1829.6,1829.5,9.82162832]
[1746599468832,5.46464554,1830.0,1829.7,5.46535857]
[1746599469203,0.51193708,1829.9,1829.8,0.12566253]
[1746599469604,0.51193708,1829.9,1829.8,0.90556253]
[1746599470105,0.51193708,1829.9,1829.8,7.00771242]
[1746599470946,0.51193708,1829.9,1829.8,7.0623541]
[1746599471154,27.45292684,1830.9,1830.3,0.7799]
[1746599471155,5.4628186,1830.6,1830.3,0.7799]
[1746599471449,6.25710511,1830.7,1830.3,6.29796246]
[1746599471677,6.25710511,1830.7,1830.3,6.36550686]
[1746599471973,6.63444042,1830.7,1830.3,6.36544518]
[1746599472180,0.51150396,1830.6,1830.3,6.44689607]
[1746599472334,0.51150396,1830.6,1830.3,6.24326885]
[1746599472534,0.51150396,1830.5,1830.3,6.24326885]
[1746599472849,6.63444042,1830.7,1830.3,6.24326885]
[1746599473259,0.51118485,1830.6,1830.3,11.70661945]
[1746599473553,0.51118485,1830.6,1830.3,6.2432506]
[1746599473929,6.63444042,1830.7,1830.3,6.2432506]
[1746599474469,6.63444042,1830.7,1830.3,11.70663756]
[1746599474663,5.46250511,1830.7,1830.3,11.70663756]
[1746599474865,0.51073535,1830.6,1830.4,5.51783559]
[1746599475263,5.46224803,1830.8,1830.4,5.51783559]
[1746599475656,0.51051607,1830.7,1830.5,5.46291589]
[1746599475969,0.51051607,1830.7,1830.5,6.56097837]
[1746599476467,11.72453715,1830.9,1830.6,0.7972]
[1746599476771,10.92993715,1830.9,1830.6,0.7972]
[1746599477072,0.51028653,1830.8,1830.6,0.7972]
[1746599477444,5.97239649,1830.8,1830.6,0.7972]
[1746599477655,1.27088653,1830.7,1830.2,12.3258]
[1746599477952,6.73346327,1830.7,1830.3,5.46357076]
[1746599478375,0.51028653,1830.6,1830.3,5.46357076]
[1746599478838,5.46283404,1830.6,1830.2,11.74949879]
[1746599479046,5.46283404,1830.6,1830.2,17.21315171]
[1746599479240,5.46283404,1830.6,1830.3,1.72131517]
[1746599480972,5.46304439,1830.5,1830.2,0.8008]
[1746599481170,5.46263151,1830.7,1830.2,6.26453038]
[1746599481369,11.74720112,1830.8,1830.4,5.46324828]
[1746599481679,5.46278414,1830.6,1830.3,5.46356629]
[1746599482280,5.46278414,1830.6,1830.2,6.26447723]
[1746599482440,5.46278414,1830.6,1830.3,0.62644772]
[1746599482735,5.46278414,1830.6,1830.3,6.09000426]
[1746599483370,5.46278414,1830.6,1830.3,0.62644772]
[1746599484973,5.46300785,1830.5,1830.2,0.8008]
[1746599486649,0.55,1830.5,1830.0,6.2736]
[1746599486859,0.55,1830.5,1829.8,4.3094512]
[1746599486860,5.46412597,1830.2,1829.8,10.58190573]
[1746599487057,5.46375292,1830.3,1829.9,5.46465153]
[1746599489575,5.46375292,1830.3,1830.0,18.0]
[1746599490378,6.22293901,1830.4,1830.0,23.46442114]
[1746599490594,5.46314985,1830.5,1830.1,6.22938102]
[1746599491162,0.50993276,1830.4,1830.1,6.22938102]
[1746599491686,10.92637755,1830.5,1830.1,6.22938102]
[1746599491855,5.46341968,1830.4,1830.1,0.7653]
[1746599492044,5.46341968,1830.4,1830.0,5.46442114]
[1746599492393,0.51010377,1830.3,1830.0,5.46442114]
[1746599493173,5.46341968,1830.4,1830.0,5.46442114]
[1746599494049,0.51018936,1830.3,1830.0,5.46442114]
[1746599494370,0.51018936,1830.3,1830.0,7.24288683]
[1746599494684,5.46341968,1830.4,1830.0,7.24288683]
[1746599495378,0.51037768,1830.3,1830.0,7.24288683]
[1746599495876,6.24352163,1830.3,1829.9,12.32037945]
[1746599496082,6.24349297,1830.3,1829.9,12.32037945]
[1746599496278,6.24349297,1830.3,1829.9,17.78498765]
[1746599496469,6.24349297,1830.3,1829.9,17.7848363]
[1746599496672,0.51059783,1830.2,1829.9,17.7848363]
[1746599497478,0.51059783,1830.1,1830.0,5.51912204]